Cogmind - Beta 12 @@@ ROGUE MODE // 2023.04.03 @ 23:56:12 Player: Zirov Result: Self-destructed Performance ------------- Evolutions (2) 1000 Regions Visited (6) 1200 Robots Destroyed (73) 365 Value Destroyed (2097) 2097 Prototype IDs (6) 120 Alien Tech Used (0) 0 Bonus (29) 29 TOTAL SCORE: 4811 Bonus ------- High Alert Combat Kills 29 Cogmind --------- Core Integrity 309/550 Matter 199/300 Energy 94/100 System Corruption 0% Temperature Cool (0) Movement Walking (123) Location -8/Materials Parts ------- > --- POWER (1) -------- (None) > --- PROPULSION (4) --- Improved Aluminum Leg Improved Aluminum Leg Titanium Leg > --- UTILITY (3) ------ Medium Storage Unit Advanced Visual Processing Unit Hardened Medium Armor Plating > --- WEAPON (3) ------- Autogun Minigun > --- INVENTORY (10) --- Improved Ion Engine Improved Sensor Array Improved Signal Interpreter Hardlight Generator Makeshift System Restoration Module Peak State ------------ > --- POWER ------------ Light Nuclear Core > --- PROPULSION ------- Advanced Treads Advanced Treads Improved Aluminum Leg Improved Aluminum Leg > --- UTILITY ---------- Medium Storage Unit Advanced Visual Processing Unit Hardened Medium Armor Plating > --- WEAPON ----------- Heavy Assault Rifle Improved Assault Rifle Minigun > --- INVENTORY -------- Light Treads Light Treads Carbon-fiber Leg Carbon-fiber Leg Titanium Leg Improved Signal Interpreter Hardened Medium Armor Plating Makeshift System Restoration Module Autogun Rocket Launcher [Rating: 30] Favorites ----------- Power Light Nuclear Core Engine Ion Engine Power Core Light Nuclear Core Propulsion Light Treads Treads Light Treads Leg Aluminum Leg Utility Medium Storage Unit Device Heat Sink Storage Medium Storage Unit Processor Advanced Visual Processing Unit Protection Hardened Light Armor Plating Weapon Improved Assault Rifle Energy Gun Medium Laser Ballistic Gun Improved Assault Rifle Launcher Rocket Launcher Build | -11 -10 -9 -9 -9 -8 -8 ------- Run | Jun Mat Mat Min Exi Min Mat Slots Evolved 4 | . . 2 . . . 2 Power . | . . . . . . . Propulsion 2 | . . 1 . . . 1 Utility 1 | . . . . . . 1 Weapon 1 | . . 1 . . . . Parts Attached 66 | 6 14 13 . 3 1 29 Power 10 | 1 3 1 . . 1 4 Engine 5 | 1 2 . . . . 2 Core 5 | . 1 1 . . 1 2 Reactor . | . . . . . . . Propulsion 28 | 2 5 5 . 2 . 14 Treads 12 | . . 3 . 2 . 7 Leg 16 | 2 5 2 . . . 7 Wheel . | . . . . . . . Hover . | . . . . . . . Flight . | . . . . . . . Utility 8 | 1 2 2 . . . 3 Device 1 | . 1 . . . . . Storage 2 | 1 1 . . . . . Processor 1 | . . . . . . 1 Hackware . | . . . . . . . Protection 4 | . . 2 . . . 2 Artifact . | . . . . . . . Weapon 20 | 2 4 5 . 1 . 8 Energy Gun 2 | 1 . 1 . . . . Energy Cannon . | . . . . . . . Ballistic Gun 17 | 1 4 4 . 1 . 7 Ballistic Cannon . | . . . . . . . Launcher 1 | . . . . . . 1 Special Weapon . | . . . . . . . Impact Weapon . | . . . . . . . Slashing Weapon . | . . . . . . . Piercing Weapon . | . . . . . . . Special Melee Weapon . | . . . . . . . Unidentified Prototypes . | . . . . . . . Parts Lost 21 | . 5 4 . . . 12 Power 4 | . 2 . . . . 2 Propulsion 8 | . 1 2 . . . 5 Utility 2 | . . 1 . . . 1 Weapon 7 | . 2 1 . . . 4 Highest Loss Streak 8 | . 4 1 . . . 8 To Critical Strikes . | . . . . . . . Average Slot Usage (%) 98 | . 91 99 100 100 100 98 Engine 1 | . 9 . . . . . Core 8 | . 3 11 11 11 11 8 Treads 19 | . . 10 33 33 33 23 Leg 13 | . 27 22 . . . 12 Device 1 | . 8 2 . . . . Storage 10 | . 14 11 11 11 11 9 Processor 3 | . . . . . . 8 Protection 8 | . . 8 11 11 11 8 Ballistic Gun 29 | . 27 30 33 33 33 26 Naked Turns . | . . . . . . . Heaviest Build 32 | 13 20 29 29 29 29 32 Greatest Support 84 | 20 20 60 60 60 60 84 Greatest Overweight (x) 3 | 3 1 1 . . . . Average Overweight (x) . | . . . . . . . Largest Inventory Capacity 10 | 8 10 10 10 10 10 10 Average Capacity 9 | 7 9 10 10 10 10 10 Most Carried 10 | . 10 10 10 10 10 10 Average Carried 9 | . 7 8 9 9 10 9 Final Capacity 10 | 8 10 10 10 10 10 10 Final Carried 10 | . 8 10 10 10 10 5 Class Distribution -------------------- 39% | Scavenger-Tank 38% | Tank 12% | Mutant 5% | Scavenger-Mutant 4% | Scavenger-Gunner Dominant Class ---------------- Mutant | -10/Materials Scavenger-Tank | -9/Materials Scavenger-Tank | -9/Mines Tank | -9/Exiles Tank | -8/Mines Tank | -8/Materials Resources | -11 -10 -9 -9 -9 -8 -8 ----------- Run | Jun Mat Mat Min Exi Min Mat Matter Collected 2363 | 224 471 444 46 39 64 1075 Remotely . | . . . . . . . Salvage Created 3027 | . 532 901 34 29 164 1367 Parts 181 | . 31 39 5 . 6 100 Haulers Intercepted 8 | . . 3 . . . 5 Recyclers Shooed 1 | . . 1 . . . . Parts Field Recycled . | . . . . . . . Retrieved Matter . | . . . . . . . Parts Self-Destructed . | . . . . . . . Prevented . | . . . . . . . Kills | -11 -10 -9 -9 -9 -8 -8 ------- Run | Jun Mat Mat Min Exi Min Mat Combat Hostiles Destroyed 56 | . 10 13 3 . 3 27 Guns 56 | . 10 13 3 . 3 27 Classes Destroyed 11 | . 3 4 1 . . 3 Worker 3 | . . 3 . . . . Hauler 8 | . . 3 . . . 5 Recycler 2 | . 1 1 . . . . Watcher 4 | . 1 . . . . 3 Swarmer 13 | . . . 3 . . 10 Grunt 25 | . 10 8 . . 3 4 Brawler 2 | . . 1 . . . 1 Duelist 1 | . . . . . . 1 Sentry 12 | . . 4 . . . 8 Specialist 1 | . . . . . . 1 Hunter 2 | . . . . . . 2 Best Kill Streak 5 | . 3 5 4 . 3 4 Combat Bots Only 4 | . 2 4 3 . 3 4 Max Kills in Single Turn 2 | . 1 1 2 . 1 2 Gunslinging 1 | . . . 1 . . 1 Exploded . | . . . . . . . Melee . | . . . . . . . Uniques/NPCs Destroyed . | . . . . . . . Combat | -11 -10 -9 -9 -9 -8 -8 -------- Run | Jun Mat Mat Min Exi Min Mat Damage Taken 4192 | . 880 703 48 . 153 2408 Core 489 | . 157 71 . . 20 241 Absorbed by Shields . | . . . . . . . Core Remaining (%) 71 | 100 37 . . . 77 . Volleys Fired 212 | . 58 41 3 1 6 103 Largest 3 | . 2 3 3 3 3 3 Hottest 90 | . 40 90 69 69 69 71 Shots Fired 559 | . 113 120 9 3 18 296 Gun 559 | . 113 120 9 3 18 296 Cannon . | . . . . . . . Launcher . | . . . . . . . Special . | . . . . . . . Kinetic 557 | . 113 118 9 3 18 296 Thermal 2 | . . 2 . . . . Explosive . | . . . . . . . Electromagnetic . | . . . . . . . Robot Hit Streak 23 | . 14 23 2 2 9 21 Robot Miss Streak 7 | . 5 4 3 1 2 7 Penetration Max . | . . . . . . . Secondary Targets 12 | . 1 2 1 . 2 6 Max Gunslinging Chain 2 | . 1 1 1 . 1 2 Shots Hit Robots 370 | . 76 81 3 2 14 194 Core Hits 144 | . 26 35 3 2 7 71 Critical Kills . | . . . . . . . Critical Parts Destroyed 2 | . . . . . . 2 Critical Strikes 2 | . . . . . . 2 Destroy 2 | . . . . . . 2 Melee Attacks . | . . . . . . . Impact . | . . . . . . . Slashing . | . . . . . . . Piercing . | . . . . . . . Sneak Attacks . | . . . . . . . Combat Hostiles . | . . . . . . . Follow-up Attacks . | . . . . . . . Damage Inflicted 5440 | . 997 1172 75 49 211 2936 Guns 5440 | . 997 1172 75 49 211 2936 Cannons . | . . . . . . . Explosions . | . . . . . . . Melee . | . . . . . . . Ramming . | . . . . . . . Kinetic 5414 | . 997 1146 75 49 211 2936 Thermal 26 | . . 26 . . . . Explosive . | . . . . . . . Electromagnetic . | . . . . . . . Impact . | . . . . . . . Slashing . | . . . . . . . Piercing . | . . . . . . . Highest Corruption . | . . . . . . . Average Corruption . | . . . . . . . Corruption Purged . | . . . . . . . Corruption Blocked . | . . . . . . . Overload Shots . | . . . . . . . Overflow Damage . | . . . . . . . Projectiles . | . . . . . . . Explosions . | . . . . . . . Melee . | . . . . . . . Knockbacks . | . . . . . . . Impact . | . . . . . . . Kinetic . | . . . . . . . Secondary . | . . . . . . . Self-Inflicted Damage . | . . . . . . . Shots . | . . . . . . . Rammed . | . . . . . . . Targets Rammed . | . . . . . . . Kicked . | . . . . . . . Crushed . | . . . . . . . Highest Temperature 246 | . 15 246 47 21 173 219 Average Temperature 47 | . 3 75 21 11 90 34 Received Heat Transfer 1647 | . 540 378 . . 81 648 Siege Activations . | . . . . . . . Robots Corrupted . | . . . . . . . Combat Hostiles . | . . . . . . . Parts Fried . | . . . . . . . Impact Corruptions . | . . . . . . . Robots Melted . | . . . . . . . Combat Hostiles . | . . . . . . . Parts Melted . | . . . . . . . Heat Transferred 74 | . . 74 . . . . Parts Sabotaged . | . . . . . . . Parts Stolen . | . . . . . . . Parts Stripped . | . . . . . . . Power Chain Reactions . | . . . . . . . Missiles Intercepted . | . . . . . . . Alert | -11 -10 -9 -9 -9 -8 -8 ------- Run | Jun Mat Mat Min Exi Min Mat Peak Influence 513 | . 251 184 121 . 70 513 Initial 62 | . . 62 51 . . 27 Average 173 | . 112 115 118 . 60 244 Maximum Alert Level 2 | . 1 . . . . 2 Low Security (%) 61 | 100 88 100 100 . 100 25 Level 1 35 | . 11 . . . . 68 Level 2 2 | . . . . . . 5 Level 3 . | . . . . . . . Level 4 . | . . . . . . . Level 5 . | . . . . . . . High Security . | . . . . . . . Max Security . | . . . . . . . Squads Dispatched 10 | . 3 1 . . . 6 Investigation 2 | . 2 . . . . . Extermination . | . . . . . . . Reinforcement 5 | . 1 1 . . . 3 Assault . | . . . . . . . Garrison 3 | . . . . . . 3 Intercept . | . . . . . . . Searches Triggered . | . . . . . . . Construction Impeded . | . . . . . . . Haulers Reinforced . | . . . . . . . Active Scanning Responses . | . . . . . . . Cargo Convoy Interrupts . | . . . . . . . Stealth | -11 -10 -9 -9 -9 -8 -8 --------- Run | Jun Mat Mat Min Exi Min Mat Distress Signals 1 | . 1 . . . . . Communications Jammed . | . . . . . . . Distress Signals . | . . . . . . . Times Spotted 94 | . 16 23 3 . 3 49 Peak Tracking Total 6 | . 4 4 3 . 3 6 Tactical Retreats 5 | . 2 . . . . 3 Traps | -11 -10 -9 -9 -9 -8 -8 ------- Run | Jun Mat Mat Min Exi Min Mat Traps Triggered 2 | . . . . . . 2 Indirectly . | . . . . . . . Trap Hack Attempts . | . . . . . . . Triggered . | . . . . . . . Disarmed . | . . . . . . . Reprogrammed . | . . . . . . . Reused . | . . . . . . . Traps Extracted . | . . . . . . . Installed . | . . . . . . . Triggered . | . . . . . . . Machines | -11 -10 -9 -9 -9 -8 -8 ---------- Run | Jun Mat Mat Min Exi Min Mat Machines Disabled 1 | . . . . . . 1 Max in Single Turn 1 | . . . . . . 1 Machines Repaired . | . . . . . . . Machines Sabotaged . | . . . . . . . Overloaded Fab Kills . | . . . . . . . Hacking | -11 -10 -9 -9 -9 -8 -8 --------- Run | Jun Mat Mat Min Exi Min Mat Machines Accessed 18 | . 5 7 . . . 6 Terminals 16 | . 5 5 . . . 6 Fabricators . | . . . . . . . Repair Stations . | . . . . . . . Recycling Units 1 | . . 1 . . . . Scanalyzers 1 | . . 1 . . . . Garrison Access . | . . . . . . . Total Hacks 41 | . 14 10 . . . 17 Successful 17 | . 5 4 . . . 8 Failed 24 | . 9 6 . . . 9 Catastrophic 8 | . 5 2 . . . 1 Database Lockouts . | . . . . . . . Manual 10 | . 8 1 . . . 1 Terminals 38 | . 14 7 . . . 17 Fabricators . | . . . . . . . Repair Stations . | . . . . . . . Recycling Units 2 | . . 2 . . . . Scanalyzers 1 | . . 1 . . . . Garrison Access . | . . . . . . . Terminal Hacks 14 | . 5 1 . . . 8 Robot Analysis 1 | . . . . . . 1 Prototype ID Bank 3 | . . 1 . . . 2 Level Access Points 1 | . 1 . . . . . Branch Access Points 2 | . 1 . . . . 1 Alert Level 1 | . . . . . . 1 Locate Traps 1 | . . . . . . 1 Reinforcement Status 1 | . 1 . . . . . Hauler Manifests 2 | . 1 . . . . 1 Registered Components 1 | . 1 . . . . . Zone Layout 1 | . . . . . . 1 Fabricator Hacks . | . . . . . . . Repair Station Hacks . | . . . . . . . Recycling Unit Hacks 2 | . . 2 . . . . Report Inventory 1 | . . 1 . . . . Retrieve Components 1 | . . 1 . . . . Scanalyzer 1 | . . 1 . . . . Insert Component 1 | . . 1 . . . . Garrison Access Hacks . | . . . . . . . Unauthorized Hacks . | . . . . . . . Terminals . | . . . . . . . Fabricators . | . . . . . . . Repair Stations . | . . . . . . . Recycling Units . | . . . . . . . Scanalyzers . | . . . . . . . Garrison Access . | . . . . . . . Data Cores Recovered . | . . . . . . . Used . | . . . . . . . Hacking Detections 15 | . 3 6 . . . 6 Full Trace Events 3 | . 3 . . . . . Feedback Events . | . . . . . . . Feedback Blocked . | . . . . . . . Robot Schematics Acquired . | . . . . . . . Robots Built . | . . . . . . . Authchips . | . . . . . . . Time . | . . . . . . . Total Robot Build Rating . | . . . . . . . Part Schematics Acquired . | . . . . . . . Parts Built . | . . . . . . . Authchips . | . . . . . . . Time . | . . . . . . . Total Part Build Rating . | . . . . . . . Parts Repaired . | . . . . . . . Time . | . . . . . . . Parts Recycled . | . . . . . . . Recycled Matter . | . . . . . . . Retrieved Matter . | . . . . . . . Retrieved Components 10 | . . 10 . . . . Parts Scanalyzed . | . . . . . . . Part Schematics Acquired . | . . . . . . . Parts Damaged . | . . . . . . . Bothacking | -11 -10 -9 -9 -9 -8 -8 ------------ Run | Jun Mat Mat Min Exi Min Mat Used RIF Installer . | . . . . . . . Robots Hacked . | . . . . . . . Non-combat . | . . . . . . . Combat . | . . . . . . . Robot Hacks Applied . | . . . . . . . Relay Couplers Released . | . . . . . . . Fabnet Peak Effective % . | . . . . . . . Robots Rewired . | . . . . . . . Allies Hacked . | . . . . . . . Hacks Repelled . | . . . . . . . Allies | -11 -10 -9 -9 -9 -8 -8 -------- Run | Jun Mat Mat Min Exi Min Mat Total Allies . | . . . . . . . Largest Group . | . . . . . . . Highest-Rated Group . | . . . . . . . Highest-Rated Ally . | . . . . . . . Total Orders . | . . . . . . . Ally Attacks . | . . . . . . . Total Damage . | . . . . . . . Kills . | . . . . . . . Allies Corrupted . | . . . . . . . Allies Melted . | . . . . . . . Intel | -11 -10 -9 -9 -9 -8 -8 ------- Run | Jun Mat Mat Min Exi Min Mat Robot Analysis Total 1 | . . . . . . 1 Derelict Logs Recovered . | . . . . . . . Drone Launches . | . . . . . . . Drone Recoveries . | . . . . . . . Exploration | -11 -10 -9 -9 -9 -8 -8 ------------- Run | Jun Mat Mat Min Exi Min Mat Turns Passed 4990 | 43 697 982 146 1013 173 1936 Spaces Moved 2629 | 27 360 583 85 627 93 854 Core 6 | 6 . . . . . . Treads 1485 | . . 151 85 627 93 529 Legs 1138 | 21 360 432 . . . 325 Wheels . | . . . . . . . Hover . | . . . . . . . Flight . | . . . . . . . Fastest Speed 50 | 50 120 120 160 160 160 120 Average Speed 141 | 130 120 131 160 160 160 141 Slowest Speed 240 | 200 190 240 160 160 160 160 Overloaded Moves . | . . . . . . . Propulsion Burnouts . | . . . . . . . Robots Hopped . | . . . . . . . Cave-ins Triggered . | . . . . . . . Exploration Rate (%) 40 | 3 49 41 21 91 12 67 Regions Visited 6 Branch Regions 3 Pre-discovered Areas . | . . . . . . . Known Exits Taken 1 | . 1 . . . . . Unknown Exits Taken 5 | 1 . 1 1 1 1 . Scrap Searched 2 | . . . 1 . 1 . Spaces Dug . | . . . . . . . Terrain Destroyed . | . . . . . . . Melee . | . . . . . . . Projectile . | . . . . . . . AOE . | . . . . . . . Terrain Rammed . | . . . . . . . Walls Destroyed . | . . . . . . . Machines Disabled . | . . . . . . . Actions | -11 -10 -9 -9 -9 -8 -8 --------- Run | Jun Mat Mat Min Exi Min Mat Total 3467 | 32 509 716 89 636 106 1379 Wait 470 | . 64 53 . . 4 349 Move 2623 | 26 359 582 84 626 92 854 Hop . | . . . . . . . Pick Up 45 | . 8 16 1 1 1 18 Fast Attach 14 | 6 4 . . . . 4 Attach 20 | . 5 6 . 1 . 8 Detach 3 | . 3 . . . . . Swap 32 | . 5 7 . 2 1 17 Drop 46 | . 3 11 1 3 2 26 Fire 212 | . 58 41 3 1 6 103 Melee . | . . . . . . . Ram . | . . . . . . . Kick . | . . . . . . . Crush . | . . . . . . . Escape Stasis . | . . . . . . . Rewire 2 | . . . . 2 . . Trap . | . . . . . . . Miscellaneous . | . . . . . . . Route ------- -11/Junkyard -10/Materials (discovered 4 exits: *Mat x3 / Min) -9/Materials (discovered 2 exits: *Mat / [*Min]) -9/Mines -9/Exiles -8/Mines -8/Materials History --------- Turn | Location | Event 20 | -11/Junkyard | Discovered new exit (range 15) 44 | -11/Junkyard | Entered Materials 303 | -10/Materials | Build established: Mutant 399 | -10/Materials | Identified exit to Mines 580 | -10/Materials | Core integrity fell below 50% 639 | -10/Materials | Lost 4 parts (2p1n1w) 661 | -10/Materials | Identified exit to Materials 741 | -10/Materials | Entered another Materials area 741 | -9/Materials | Evolved 2 slots: Propulsion x1, Weapon x1 1267 | -9/Materials | Build established: Scavenger-Tank 1442 | -9/Materials | Discovered new exit (range 15) 1611 | -9/Materials | Discovered new exit (range 13) 1723 | -9/Materials | Entered Mines 1861 | -9/Mines | Deemed a non-threat by the Exiles lab entrance 1863 | -9/Mines | Discovered new exit (range 5) 1869 | -9/Mines | Entered Exiles 1869 | -9/Exiles | Found Exiles lab destroyed 2576 | -9/Exiles | Build established: Tank 2866 | -9/Exiles | Discovered new exit (range 12) 2882 | -9/Exiles | Entered Mines 3023 | -8/Mines | Discovered new exit (range 16) 3055 | -8/Mines | Entered Materials 3055 | -8/Materials | Evolved 2 slots: Propulsion x1, Utility x1 3957 | -8/Materials | Build established: Scavenger-Tank 4223 | -8/Materials | Garrison activated, responded to threat 4596 | -8/Materials | Build established: Tank 4991 | -8/Materials | Self-destructed Last Messages --------------- 04966_ Imp. Aluminum Leg destroyed. 04971_ Carbon-fiber Leg destroyed. 04971_ Knocked back. 04972_ Acquired 10 matter. 04975_ H-61 Shepherd calls for reinforcements. 04975_ ALERT: Hostile activity reported, dispatching reinforcements to area. 04975_ Imp. Aluminum Leg destroyed. 04975_ Critical hit (Blast). 04975_ Knocked back. 04976_ Acquired 4 matter. 04977_ Knocked back. 04979_ Carbon-fiber Leg destroyed. 04979_ Hrd. Medium Armor Plating destroyed. 04981_ Hvy. Assault Rifle destroyed. 04981_ Penetrated by Slug. 04983_ Imp. Assault Rifle destroyed. 04986_ Lgt. Nuclear Core destroyed. 04987_ U-05 Engineer builds a Wall. 04990_ Slug penetrates U-05 Engineer. Map ----- +----------------------------------------------------+ | | | | | | | | | | | | | | | | | | | | | ?????????????????????????????????????????????????? | | ?????????????????????????????????????????????????? | | ?????????????????????????????????????????????????? | | ?????????????????????????????????????????????????? | | ?????????????????????????????????????????????????? | | ?????????????????????????????????????????????????? | | ?????????????????????????????????????????????????? | | ?????????????????????????????????????????????????? | | ?????????????????????????????????????????????????? | | ?????????????????????????????????????????????????? | | ?????????????????????????????????????????????????? | | ?????????????????????????????????????????????????? | | ??????????????????????????#######????????????????? | | ??# ###+####;#;#########; #????????????????? | | ? h ux % ##???????????????? | | ? *%[ H % @ =%* ;#???????????????? | | ? != u % ! ;#???????????????? | | ?????####+######### ####### ##???????????????? | | ??????????????????# #????####+#####??????????????? | | ??????????????????# #????# #??????????????? | | ??????????????????# #????# """ #??????????????? | | ??????????????????# #????# """ #??????????????? | | ?????????????????## ##???# """ #??????????????? | | ?????????????????# ##### #??????????????? | | ?????????????????# + """ #??????????????? | | ?????????????????# #### """ #??????????????? | | ?????????????????# #??# ! """ #??????????????? | | ?????????######### #??# #??????????????? | | ?????????# # #??##########??????????????? | | ##???????# # #??????????????????????????? | | #???????# + #??????????????????????????? | | #???????####+####%[ *#??????????????????????????? | | #??????????# #### == #####??????????????????????? | | #??????????# ==*[ #??########????????????? | | #??????????# #??# #????????????? | | #? ?? + #### #????????????? | | ## ## # # #????????????? | | ### ##[ ????# + #????????????? | | ??# #???????# # ] #????????????? | | ??# #???????# ## #????????????? | +----------------------------------------------------+ Best States ------------- Heat Dissipation 38 Energy Generation 14 Energy Capacity 250 Matter Stores 300 Matter Capacity 300 Sight Range 20 Terrain Scan Density 10 Armor Coverage 225 Evasion (%) 55 Recoil Reduction 4 Item Schematics ----------------- None Robot Schematics ------------------ None Fabricated ------------ Nothing Alien Tech Used ----------------- None Achievements -------------- None Challenges ------------ None Game ------ Seed DamperLinkedNukerbomber Manual? 0 Play Time 00:45:09 Cumulative 40.5 hours Start 2023.04.03 @ 05:21:53 End 2023.04.03 @ 23:56:12 Sessions 5 Manual Loads 0 Difficulty Rogue Special Mode None Game No. 44 Rogue 44 Adventurer 0 Explorer 0 Win Type - Total 0 Types 0/0/0/0/0/0/0/0/0 Lore% 24 Gallery% 30 Achievement% 23 Wizard Run 0 Options --------- ASCII 1 Keyboard 1 Movement Numpad Keybinds 0 Fullscreen 1 Font 18/SmallcapsGlow Map View 76x50 Tactical HUD 1 Map Filters NONE Filters NONE Steam 1 RUN: bd07c666-e233-41dc-a53f-7dcf3e171157